[Event "*** SCC Grand Prix: Titled Tuesday Blitz"]
[Site "Chess.com"]
[Date "2020.07.07"]
[Round "7"]
[White "Gerodot71"]
[Black "thedjoker98"]
[Result "1-0"]
[WhiteElo "2397"]
[BlackElo "2498"]
[TimeControl "180+1"]
[EndTime "11:17:38 PDT"]
[Termination "Gerodot71 won by resignation"]

1. d4 {[%clk 0:03:00.9]} 1... d5 {[%clk 0:02:58.5]} 2. c4 {[%clk 0:03:00.5]}
2... c6 {[%clk 0:02:58.4]} 3. Nf3 {[%clk 0:03:00.8]} 3... Nf6 {[%clk 0:02:58.5]}
4. Nc3 {[%clk 0:03:01]} 4... dxc4 {[%clk 0:02:58.8]} 5. e3 {[%clk 0:02:58.4]}
5... b5 {[%clk 0:02:57.6]} 6. a4 {[%clk 0:02:56.3]} 6... b4 {[%clk 0:02:58]} 7.
Nb1 {[%clk 0:02:55.6]} 7... Ba6 {[%clk 0:02:55.5]} 8. Ne5 {[%clk 0:02:44.2]}
8... Qd5 {[%clk 0:02:52.4]} 9. Be2 {[%clk 0:02:15.5]} 9... Nbd7 {[%clk
0:02:51.5]} 10. Bf3 {[%clk 0:02:14.4]} 10... Qd6 {[%clk 0:02:46.9]} 11. Nxc6
{[%clk 0:02:09.4]} 11... Bb7 {[%clk 0:02:41.7]} 12. Nxe7 {[%clk 0:01:51.1]}
12... Bxe7 {[%clk 0:02:33.8]} 13. Bxb7 {[%clk 0:01:48.5]} 13... Rb8 {[%clk
0:02:34.7]} 14. Bf3 {[%clk 0:01:48]} 14... O-O {[%clk 0:02:35.6]} 15. O-O {[%clk
0:01:48]} 15... Rfc8 {[%clk 0:02:34.4]} 16. Qc2 {[%clk 0:01:43.3]} 16... Nb6
{[%clk 0:02:30.2]} 17. a5 {[%clk 0:01:36.8]} 17... Nbd5 {[%clk 0:02:29.1]} 18.
e4 {[%clk 0:01:33]} 18... b3 {[%clk 0:02:29]} 19. Qd1 {[%clk 0:01:26.9]} 19...
c3 {[%clk 0:02:28.5]} 20. exd5 {[%clk 0:01:20.6]} 20... c2 {[%clk 0:02:24.4]}
21. Qd3 {[%clk 0:01:15.2]} 21... cxb1=Q {[%clk 0:02:25.3]} 22. Rxb1 {[%clk
0:01:16.1]} 22... Nxd5 {[%clk 0:02:24.9]} 23. Bd2 {[%clk 0:01:13.2]} 23... Bf6
{[%clk 0:02:24.1]} 24. g3 {[%clk 0:01:05.6]} 24... Ne7 {[%clk 0:02:16.8]} 25.
Bc3 {[%clk 0:01:03]} 25... Nd5 {[%clk 0:02:12.4]} 26. Rfc1 {[%clk 0:00:51.3]}
26... Rd8 {[%clk 0:02:11]} 27. Rd1 {[%clk 0:00:49]} 27... Qc7 {[%clk 0:02:08]}
28. Bxd5 {[%clk 0:00:27.7]} 28... Rxd5 {[%clk 0:02:07.2]} 29. Qe4 {[%clk
0:00:28.1]} 29... Qd7 {[%clk 0:02:04]} 30. Rd3 {[%clk 0:00:24.1]} 30... Bd8
{[%clk 0:02:01.2]} 31. Re1 {[%clk 0:00:23.9]} 31... Bxa5 {[%clk 0:01:59.4]} 32.
Bxa5 {[%clk 0:00:23.2]} 32... Rxa5 {[%clk 0:02:00.3]} 33. Rxb3 {[%clk
0:00:23.3]} 33... Rd8 {[%clk 0:01:57.8]} 34. Rb7 {[%clk 0:00:21.8]} 34... Qd6
{[%clk 0:01:50.1]} 35. Qe8+ {[%clk 0:00:16.3]} 35... Rxe8 {[%clk 0:01:50.4]} 36.
Rxe8+ {[%clk 0:00:16.8]} 36... Qf8 {[%clk 0:01:51.3]} 37. Rbb8 {[%clk
0:00:16.6]} 1-0

[Event "*** SCC Grand Prix: Titled Tuesday Blitz"]
[Site "Chess.com"]
[Date "2020.07.07"]
[Round "7"]
[White "CyberdelChess"]
[Black "Lenyas66"]
[Result "0-1"]
[WhiteElo "2257"]
[BlackElo "2476"]
[TimeControl "180+1"]
[EndTime "11:17:40 PDT"]
[Termination "Lenyas66 won by resignation"]

1. e4 {[%clk 0:03:00.6]} 1... e6 {[%clk 0:03:00]} 2. d4 {[%clk 0:02:57.9]} 2...
d5 {[%clk 0:03:00.1]} 3. Nc3 {[%clk 0:02:57.7]} 3... Nf6 {[%clk 0:03:00.1]} 4.
e5 {[%clk 0:02:57.4]} 4... Nfd7 {[%clk 0:03:00.2]} 5. f4 {[%clk 0:02:57.6]} 5...
c5 {[%clk 0:03:00.5]} 6. Nf3 {[%clk 0:02:57.5]} 6... Nc6 {[%clk 0:03:00.2]} 7.
Be3 {[%clk 0:02:57.3]} 7... h6 {[%clk 0:03:00.4]} 8. Qd2 {[%clk 0:02:55.2]} 8...
g5 {[%clk 0:03:00.2]} 9. fxg5 {[%clk 0:02:56.1]} 9... cxd4 {[%clk 0:02:59.6]}
10. Nxd4 {[%clk 0:02:50]} 10... Ndxe5 {[%clk 0:02:59.6]} 11. gxh6 {[%clk
0:02:41.6]} 11... Bxh6 {[%clk 0:02:58.9]} 12. Bxh6 {[%clk 0:02:40]} 12... Qh4+
{[%clk 0:02:58.4]} 13. Qf2 {[%clk 0:02:31.6]} 13... Qxf2+ {[%clk 0:02:56.3]} 14.
Kxf2 {[%clk 0:02:31.9]} 14... Rxh6 {[%clk 0:02:55.4]} 15. Nxc6 {[%clk
0:02:29.1]} 15... bxc6 {[%clk 0:02:55.2]} 16. Be2 {[%clk 0:02:27.4]} 16... Ke7
{[%clk 0:02:49]} 17. h4 {[%clk 0:02:23.1]} 17... Rb8 {[%clk 0:02:47.9]} 18. b3
{[%clk 0:02:22.2]} 18... Rb4 {[%clk 0:02:47.8]} 19. g3 {[%clk 0:02:17.6]} 19...
f5 {[%clk 0:02:47.1]} 20. Na4 {[%clk 0:02:14.2]} 20... Kd6 {[%clk 0:02:45.5]}
21. Rad1 {[%clk 0:02:10.8]} 21... c5 {[%clk 0:02:36.2]} 22. Rhe1 {[%clk
0:01:56.9]} 22... Bd7 {[%clk 0:02:35.9]} 23. Nb2 {[%clk 0:01:54.7]} 23... Rd4
{[%clk 0:02:09.2]} 24. Nd3 {[%clk 0:01:45.3]} 24... Nxd3+ {[%clk 0:02:05.3]} 25.
Bxd3 {[%clk 0:01:45.8]} 25... e5 {[%clk 0:02:01.7]} 26. c3 {[%clk 0:01:39.9]}
26... Rg4 {[%clk 0:02:01.2]} 27. Bc4 {[%clk 0:01:32.7]} 27... d4 {[%clk
0:01:58.7]} 28. cxd4 {[%clk 0:01:24.8]} 28... cxd4 {[%clk 0:01:57.9]} 29. Be2
{[%clk 0:01:19.7]} 29... Re4 {[%clk 0:01:53.7]} 30. Bf3 {[%clk 0:01:15.2]} 30...
Rxe1 {[%clk 0:01:53.4]} 31. Kxe1 {[%clk 0:01:16.1]} 31... Be6 {[%clk 0:01:45.8]}
32. Kf2 {[%clk 0:01:11]} 32... Rh7 {[%clk 0:01:45.8]} 33. Rc1 {[%clk 0:01:10.4]}
33... e4 {[%clk 0:01:44.5]} 34. Be2 {[%clk 0:01:07.7]} 34... Bd5 {[%clk
0:01:41.7]} 35. Rd1 {[%clk 0:00:58.4]} 35... Ke5 {[%clk 0:01:40.9]} 36. Rc1
{[%clk 0:00:57.9]} 36... e3+ {[%clk 0:01:39.3]} 37. Kg1 {[%clk 0:00:55.8]} 37...
Rg7 {[%clk 0:01:38.4]} 38. Kh2 {[%clk 0:00:55.9]} 38... f4 {[%clk 0:01:38.4]}
39. gxf4+ {[%clk 0:00:55.8]} 39... Kxf4 {[%clk 0:01:38.5]} 40. Rf1+ {[%clk
0:00:55.3]} 40... Ke5 {[%clk 0:01:36]} 41. Bd3 {[%clk 0:00:52.4]} 41... Rg2+
{[%clk 0:01:34.4]} 42. Kh3 {[%clk 0:00:52.9]} 42... Rxa2 {[%clk 0:01:33.6]} 43.
b4 {[%clk 0:00:47.4]} 43... Bg2+ {[%clk 0:01:30.5]} 0-1

[Event "*** SCC Grand Prix: Titled Tuesday Blitz"]
[Site "Chess.com"]
[Date "2020.07.07"]
[Round "7"]
[White "Gareth-Bale11"]
[Black "Artem_Koval"]
[Result "1-0"]
[WhiteElo "2728"]
[BlackElo "2434"]
[TimeControl "180+1"]
[EndTime "11:17:41 PDT"]
[Termination "Gareth-Bale11 won on time"]

1. c4 {[%clk 0:03:00]} 1... e5 {[%clk 0:02:59]} 2. Nc3 {[%clk 0:03:00]} 2... Nc6
{[%clk 0:02:58.6]} 3. g3 {[%clk 0:02:59.3]} 3... d6 {[%clk 0:02:47.5]} 4. Bg2
{[%clk 0:02:46.1]} 4... h5 {[%clk 0:02:46.8]} 5. h3 {[%clk 0:02:44]} 5... Be6
{[%clk 0:02:44.3]} 6. d3 {[%clk 0:02:43.8]} 6... g6 {[%clk 0:02:42.7]} 7. Nf3
{[%clk 0:02:38.4]} 7... Be7 {[%clk 0:02:36.4]} 8. Nd5 {[%clk 0:02:35.4]} 8... f6
{[%clk 0:02:19.4]} 9. Rb1 {[%clk 0:02:31.6]} 9... a5 {[%clk 0:02:17.5]} 10. a3
{[%clk 0:02:25.3]} 10... Qd7 {[%clk 0:02:17.5]} 11. b4 {[%clk 0:02:24.1]} 11...
axb4 {[%clk 0:02:18.4]} 12. axb4 {[%clk 0:02:25]} 12... Nh6 {[%clk 0:02:10.4]}
13. b5 {[%clk 0:02:23.6]} 13... Nd8 {[%clk 0:02:10.9]} 14. Nh4 {[%clk
0:02:21.4]} 14... Kf7 {[%clk 0:02:02]} 15. Be4 {[%clk 0:02:12.3]} 15... f5
{[%clk 0:01:56.6]} 16. Bg2 {[%clk 0:02:08.7]} 16... Bxh4 {[%clk 0:01:52.3]} 17.
gxh4 {[%clk 0:02:07]} 17... f4 {[%clk 0:01:52.4]} 18. e3 {[%clk 0:02:04]} 18...
Nf5 {[%clk 0:01:48.7]} 19. exf4 {[%clk 0:02:03.7]} 19... Nxh4 {[%clk 0:01:48.8]}
20. Be4 {[%clk 0:02:04]} 20... Bxh3 {[%clk 0:01:40]} 21. fxe5 {[%clk 0:02:02.7]}
21... Ng2+ {[%clk 0:01:26.9]} 22. Kd2 {[%clk 0:01:50.3]} 22... Ra2+ {[%clk
0:00:54]} 23. Rb2 {[%clk 0:01:46.1]} 23... Ra1 {[%clk 0:00:21.4]} 24. Qf3+
{[%clk 0:01:42.7]} 24... Bf5 {[%clk 0:00:09.5]} 25. Qxg2 {[%clk 0:01:40.5]}
25... dxe5 {[%clk 0:00:01.9]} 26. Bxf5 {[%clk 0:01:40.8]} 26... Qxf5 {[%clk
0:00:02.5]} 27. Rh3 {[%clk 0:01:40.8]} 1-0

[Event "*** SCC Grand Prix: Titled Tuesday Blitz"]
[Site "Chess.com"]
[Date "2020.07.07"]
[Round "7"]
[White "ShapkinAnatoliy"]
[Black "Bodnar_Mykola"]
[Result "1-0"]
[WhiteElo "2593"]
[BlackElo "2450"]
[TimeControl "180+1"]
[EndTime "11:17:42 PDT"]
[Termination "ShapkinAnatoliy won by resignation"]

1. d4 {[%clk 0:03:00.9]} 1... Nf6 {[%clk 0:02:59.1]} 2. c4 {[%clk 0:02:59.6]}
2... c5 {[%clk 0:02:57.1]} 3. d5 {[%clk 0:02:59.5]} 3... b5 {[%clk 0:02:57.3]}
4. cxb5 {[%clk 0:02:59]} 4... a6 {[%clk 0:02:57.7]} 5. bxa6 {[%clk 0:02:59.9]}
5... g6 {[%clk 0:02:57.3]} 6. Nc3 {[%clk 0:03:00]} 6... Bg7 {[%clk 0:02:57.5]}
7. e4 {[%clk 0:03:00.5]} 7... O-O {[%clk 0:02:57.6]} 8. Nf3 {[%clk 0:03:00.8]}
8... Qa5 {[%clk 0:02:56.2]} 9. Bd2 {[%clk 0:03:00.9]} 9... Bxa6 {[%clk
0:02:53.2]} 10. Be2 {[%clk 0:03:01.2]} 10... d6 {[%clk 0:02:50.2]} 11. O-O
{[%clk 0:03:00.3]} 11... Bxe2 {[%clk 0:02:47.4]} 12. Qxe2 {[%clk 0:02:59.9]}
12... Qa6 {[%clk 0:02:47.6]} 13. Qxa6 {[%clk 0:02:31.9]} 13... Nxa6 {[%clk
0:02:48.5]} 14. Rab1 {[%clk 0:02:26.8]} 14... Rfb8 {[%clk 0:02:47.6]} 15. b3
{[%clk 0:02:19.7]} 15... Rb4 {[%clk 0:02:24.7]} 16. Rfe1 {[%clk 0:02:15.9]}
16... Rab8 {[%clk 0:02:23]} 17. e5 {[%clk 0:02:12.9]} 17... Nd7 {[%clk 0:02:21]}
18. exd6 {[%clk 0:02:05.5]} 18... exd6 {[%clk 0:02:21.9]} 19. Ne4 {[%clk
0:02:05.1]} 19... R4b6 {[%clk 0:02:06.3]} 20. Bf4 {[%clk 0:02:04.8]} 20... Ne5
{[%clk 0:01:44.2]} 21. Nxe5 {[%clk 0:02:00.2]} 21... dxe5 {[%clk 0:01:42.6]} 22.
Be3 {[%clk 0:01:59.8]} 22... Bf8 {[%clk 0:01:37.5]} 23. Rec1 {[%clk 0:01:55.6]}
23... Rb5 {[%clk 0:01:32.5]} 24. d6 {[%clk 0:01:38.4]} 24... Rd8 {[%clk
0:01:04.1]} 25. a4 {[%clk 0:01:21.9]} 25... Rb4 {[%clk 0:00:58.5]} 26. Nxc5
{[%clk 0:01:19.9]} 26... Rxd6 {[%clk 0:00:58.5]} 27. Nxa6 {[%clk 0:01:15.2]}
27... Rxa6 {[%clk 0:00:59.4]} 28. Rc8 {[%clk 0:01:15.1]} 28... Raxa4 {[%clk
0:00:37.7]} 29. Bh6 {[%clk 0:01:08.3]} 1-0

[Event "*** SCC Grand Prix: Titled Tuesday Blitz"]
[Site "Chess.com"]
[Date "2020.07.07"]
[Round "7"]
[White "stanyga"]
[Black "Future2700"]
[Result "1-0"]
[WhiteElo "2617"]
[BlackElo "2422"]
[TimeControl "180+1"]
[EndTime "11:17:42 PDT"]
[Termination "stanyga won on time"]

1. e4 {[%clk 0:03:00.6]} 1... c5 {[%clk 0:02:47.6]} 2. Nf3 {[%clk 0:02:59.9]}
2... e6 {[%clk 0:02:47.5]} 3. b3 {[%clk 0:02:58.3]} 3... Nf6 {[%clk 0:02:46.3]}
4. e5 {[%clk 0:02:57.8]} 4... Nd5 {[%clk 0:02:45.9]} 5. Bb2 {[%clk 0:02:58.3]}
5... Nc6 {[%clk 0:02:44.5]} 6. g3 {[%clk 0:02:58.3]} 6... Be7 {[%clk 0:02:44]}
7. Bg2 {[%clk 0:02:57.7]} 7... O-O {[%clk 0:02:44.9]} 8. O-O {[%clk 0:02:56.1]}
8... d6 {[%clk 0:02:45.4]} 9. exd6 {[%clk 0:02:55.7]} 9... Bxd6 {[%clk
0:02:46.3]} 10. Na3 {[%clk 0:02:55.1]} 10... a6 {[%clk 0:02:40.6]} 11. Nc4
{[%clk 0:02:54.3]} 11... Bc7 {[%clk 0:02:39.4]} 12. Re1 {[%clk 0:02:53.9]} 12...
f6 {[%clk 0:02:31.1]} 13. d4 {[%clk 0:02:52.4]} 13... b5 {[%clk 0:02:24.1]} 14.
Ne3 {[%clk 0:02:36.9]} 14... cxd4 {[%clk 0:01:39.7]} 15. Nxd4 {[%clk 0:02:33]}
15... Nxd4 {[%clk 0:01:39.7]} 16. Nxd5 {[%clk 0:02:23.4]} 16... exd5 {[%clk
0:01:33.4]} 17. Qxd4 {[%clk 0:02:22.9]} 17... Bb7 {[%clk 0:01:32.1]} 18. Qd3
{[%clk 0:02:00.8]} 18... Qd7 {[%clk 0:00:54.7]} 19. Rad1 {[%clk 0:01:41.9]}
19... Rad8 {[%clk 0:00:44.2]} 20. Be4 {[%clk 0:01:41.1]} 20... h6 {[%clk
0:00:23.3]} 21. Bf5 {[%clk 0:01:38.6]} 21... Qc6 {[%clk 0:00:16.2]} 22. Be6+
{[%clk 0:01:37.4]} 22... Kh8 {[%clk 0:00:16.1]} 23. Qg6 {[%clk 0:01:37.2]} 23...
Qe8 {[%clk 0:00:14.5]} 24. Qg4 {[%clk 0:01:32.3]} 24... Bc8 {[%clk 0:00:09.5]}
25. Bxc8 {[%clk 0:01:31]} 1-0

[Event "*** SCC Grand Prix: Titled Tuesday Blitz"]
[Site "Chess.com"]
[Date "2020.07.07"]
[Round "7"]
[White "NowInChess"]
[Black "KyrgyzFighter"]
[Result "0-1"]
[WhiteElo "2154"]
[BlackElo "2319"]
[TimeControl "180+1"]
[EndTime "11:17:42 PDT"]
[Termination "KyrgyzFighter won on time"]

1. e4 {[%clk 0:03:00.9]} 1... e6 {[%clk 0:02:59.9]} 2. d3 {[%clk 0:03:00.3]}
2... d5 {[%clk 0:03:00.5]} 3. Qe2 {[%clk 0:03:00.1]} 3... dxe4 {[%clk
0:02:56.6]} 4. dxe4 {[%clk 0:02:59.7]} 4... Nf6 {[%clk 0:02:56.7]} 5. Nf3 {[%clk
0:02:59.3]} 5... Bc5 {[%clk 0:02:56.8]} 6. Be3 {[%clk 0:02:43]} 6... Nxe4 {[%clk
0:02:49.3]} 7. Bxc5 {[%clk 0:02:21.3]} 7... Nxc5 {[%clk 0:02:50.2]} 8. Qb5+
{[%clk 0:02:19.9]} 8... Nbd7 {[%clk 0:02:48.2]} 9. Nc3 {[%clk 0:02:13]} 9... O-O
{[%clk 0:02:46.4]} 10. O-O-O {[%clk 0:02:11.5]} 10... a6 {[%clk 0:02:45.9]} 11.
Qc4 {[%clk 0:01:59.6]} 11... b5 {[%clk 0:02:45.8]} 12. Qd4 {[%clk 0:01:57.8]}
12... Bb7 {[%clk 0:02:44.8]} 13. b4 {[%clk 0:01:54.5]} 13... e5 {[%clk
0:02:34.5]} 14. Qd2 {[%clk 0:01:18.1]} 14... e4 {[%clk 0:02:29.7]} 15. Ne1
{[%clk 0:00:59.2]} 15... Qf6 {[%clk 0:02:00.6]} 16. bxc5 {[%clk 0:00:51.9]}
16... Nxc5 {[%clk 0:02:01.5]} 17. Qd4 {[%clk 0:00:35.9]} 17... Qe7 {[%clk
0:02:00.9]} 18. Qe3 {[%clk 0:00:24]} 18... b4 {[%clk 0:01:55.1]} 19. Nd5 {[%clk
0:00:22.3]} 19... Qe5 {[%clk 0:01:54.1]} 20. Qxc5 {[%clk 0:00:15.5]} 20... Bxd5
{[%clk 0:01:49.5]} 21. Rxd5 {[%clk 0:00:13.9]} 21... Qa1+ {[%clk 0:01:49.7]} 22.
Kd2 {[%clk 0:00:14.1]} 22... Rad8 {[%clk 0:01:49.6]} 23. Bc4 {[%clk 0:00:12]}
23... Qc3+ {[%clk 0:01:49.1]} 24. Kc1 {[%clk 0:00:10.8]} 24... c6 {[%clk
0:01:45.9]} 25. Rxd8 {[%clk 0:00:08.5]} 25... Rxd8 {[%clk 0:01:45.1]} 26. Nd3
{[%clk 0:00:04.8]} 26... exd3 {[%clk 0:01:45]} 27. Bxf7+ {[%clk 0:00:04.3]}
27... Kxf7 {[%clk 0:01:43.3]} 28. Qf5+ {[%clk 0:00:03.8]} 28... Kg8 {[%clk
0:01:41.4]} 29. Qe6+ {[%clk 0:00:03.4]} 29... Kh8 {[%clk 0:01:41.9]} 0-1

[Event "*** SCC Grand Prix: Titled Tuesday Blitz"]
[Site "Chess.com"]
[Date "2020.07.07"]
[Round "7"]
[White "vinniethepooh"]
[Black "praveenb2002"]
[Result "0-1"]
[WhiteElo "2550"]
[BlackElo "2704"]
[TimeControl "180+1"]
[EndTime "11:17:48 PDT"]
[Termination "praveenb2002 won by resignation"]

1. d4 {[%clk 0:03:00.9]} 1... Nf6 {[%clk 0:02:57.8]} 2. c4 {[%clk 0:03:01.2]}
2... e6 {[%clk 0:02:58.2]} 3. Nc3 {[%clk 0:03:01.7]} 3... Bb4 {[%clk 0:02:57.1]}
4. f3 {[%clk 0:03:02.2]} 4... c5 {[%clk 0:02:53.4]} 5. d5 {[%clk 0:03:01.9]}
5... b5 {[%clk 0:02:54]} 6. e4 {[%clk 0:03:01.6]} 6... d6 {[%clk 0:02:49.4]} 7.
Bd3 {[%clk 0:02:59.9]} 7... O-O {[%clk 0:02:44.2]} 8. Ne2 {[%clk 0:02:59.5]}
8... Qb6 {[%clk 0:02:43.1]} 9. O-O {[%clk 0:02:57.3]} 9... exd5 {[%clk
0:02:42.6]} 10. Nxd5 {[%clk 0:02:47.4]} 10... Nxd5 {[%clk 0:02:40.9]} 11. exd5
{[%clk 0:02:48.3]} 11... bxc4 {[%clk 0:02:40.9]} 12. Bxc4 {[%clk 0:02:48.4]}
12... Nd7 {[%clk 0:02:36.7]} 13. Bf4 {[%clk 0:02:47]} 13... Re8 {[%clk
0:02:36.4]} 14. Qc2 {[%clk 0:02:43]} 14... Ba6 {[%clk 0:02:27.6]} 15. Ng3 {[%clk
0:02:31.5]} 15... Bxc4 {[%clk 0:02:24.6]} 16. Qxc4 {[%clk 0:02:32.4]} 16... Ne5
{[%clk 0:02:25.2]} 17. Bxe5 {[%clk 0:02:31.4]} 17... Rxe5 {[%clk 0:02:26.1]} 18.
f4 {[%clk 0:02:16.4]} 18... Re3 {[%clk 0:02:01.3]} 19. Nf5 {[%clk 0:02:08.4]}
19... Ree8 {[%clk 0:02:01]} 20. Kh1 {[%clk 0:01:39]} 20... Ba5 {[%clk
0:01:54.8]} 21. b3 {[%clk 0:01:33]} 21... Qd8 {[%clk 0:01:48.2]} 22. Rf3 {[%clk
0:01:25.6]} 22... Qf6 {[%clk 0:01:46.3]} 23. Raf1 {[%clk 0:00:47.1]} 23... Qxf5
{[%clk 0:01:45.6]} 24. Qb5 {[%clk 0:00:48]} 24... Bb4 {[%clk 0:01:37.8]} 25. Rg3
{[%clk 0:00:35.6]} 25... h6 {[%clk 0:01:34]} 26. h3 {[%clk 0:00:33.6]} 26... Re1
{[%clk 0:01:31.9]} 27. Rxe1 {[%clk 0:00:31.5]} 27... Bxe1 {[%clk 0:01:32.8]} 28.
Re3 {[%clk 0:00:31.3]} 28... Bd2 {[%clk 0:01:23.7]} 29. Re2 {[%clk 0:00:31.1]}
29... Qb1+ {[%clk 0:01:21.7]} 30. Kh2 {[%clk 0:00:30.2]} 30... Bxf4+ {[%clk
0:01:22.1]} 31. g3 {[%clk 0:00:30.9]} 31... Be5 {[%clk 0:01:20.5]} 32. Qc6
{[%clk 0:00:30.8]} 32... Rf8 {[%clk 0:01:17.9]} 0-1

[Event "*** SCC Grand Prix: Titled Tuesday Blitz"]
[Site "Chess.com"]
[Date "2020.07.07"]
[Round "7"]
[White "szachuspl"]
[Black "temus_galaktionov"]
[Result "0-1"]
[WhiteElo "2500"]
[BlackElo "2666"]
[TimeControl "180+1"]
[EndTime "11:17:55 PDT"]
[Termination "temus_galaktionov won by checkmate"]

1. d4 {[%clk 0:03:00.9]} 1... c6 {[%clk 0:03:00.9]} 2. c4 {[%clk 0:02:59.7]}
2... g6 {[%clk 0:02:58.7]} 3. Nc3 {[%clk 0:02:59.3]} 3... d6 {[%clk 0:02:56.3]}
4. Nf3 {[%clk 0:02:59.4]} 4... Nd7 {[%clk 0:02:55.3]} 5. e4 {[%clk 0:02:59.7]}
5... Bg7 {[%clk 0:02:53.1]} 6. Be2 {[%clk 0:03:00.1]} 6... e5 {[%clk 0:02:51.7]}
7. Be3 {[%clk 0:02:59.7]} 7... Qe7 {[%clk 0:02:50.2]} 8. O-O {[%clk 0:02:59]}
8... Ngf6 {[%clk 0:02:49.7]} 9. d5 {[%clk 0:02:57.2]} 9... c5 {[%clk 0:02:45.6]}
10. Nd2 {[%clk 0:02:57]} 10... O-O {[%clk 0:02:44.3]} 11. a3 {[%clk 0:02:56.6]}
11... Ne8 {[%clk 0:02:44]} 12. b4 {[%clk 0:02:49.4]} 12... b6 {[%clk 0:02:43.6]}
13. Nb3 {[%clk 0:02:46.9]} 13... f5 {[%clk 0:02:40.6]} 14. bxc5 {[%clk
0:02:40.8]} 14... Nxc5 {[%clk 0:02:41.5]} 15. Nxc5 {[%clk 0:02:30.4]} 15... bxc5
{[%clk 0:02:36.9]} 16. Rb1 {[%clk 0:02:21.9]} 16... f4 {[%clk 0:02:36.9]} 17.
Bd2 {[%clk 0:02:21.7]} 17... h5 {[%clk 0:02:37]} 18. Kh1 {[%clk 0:02:14.7]}
18... Nf6 {[%clk 0:02:35.9]} 19. Rb3 {[%clk 0:02:04.4]} 19... Qf7 {[%clk
0:02:32.7]} 20. f3 {[%clk 0:02:02.3]} 20... g5 {[%clk 0:02:32.7]} 21. Be1 {[%clk
0:02:01]} 21... Qg6 {[%clk 0:02:30.3]} 22. Nb5 {[%clk 0:01:57.2]} 22... Ne8
{[%clk 0:02:26.7]} 23. Qb1 {[%clk 0:01:53.3]} 23... g4 {[%clk 0:02:24.5]} 24.
fxg4 {[%clk 0:01:49.5]} 24... hxg4 {[%clk 0:02:25.4]} 25. Nc3 {[%clk 0:01:42.8]}
25... Nf6 {[%clk 0:02:18.8]} 26. g3 {[%clk 0:01:33.6]} 26... Nh5 {[%clk
0:01:58.7]} 27. Bd3 {[%clk 0:01:24.3]} 27... Bd7 {[%clk 0:01:55.9]} 28. Rb7
{[%clk 0:01:20.2]} 28... Rf7 {[%clk 0:01:55.5]} 29. Rg1 {[%clk 0:01:10.5]} 29...
Raf8 {[%clk 0:01:46.4]} 30. Qc2 {[%clk 0:01:09.6]} 30... fxg3 {[%clk 0:01:44.2]}
31. hxg3 {[%clk 0:01:09.7]} 31... Bh6 {[%clk 0:01:41.4]} 32. Kg2 {[%clk
0:00:47.3]} 32... Be3 {[%clk 0:01:39.7]} 33. Rf1 {[%clk 0:00:44.2]} 33... Qh6
{[%clk 0:01:16.8]} 34. Rxd7 {[%clk 0:00:30.7]} 34... Nf4+ {[%clk 0:01:14.6]} 35.
Rxf4 {[%clk 0:00:25.5]} 35... Qh3# {[%clk 0:01:15.5]} 0-1

[Event "*** SCC Grand Prix: Titled Tuesday Blitz"]
[Site "Chess.com"]
[Date "2020.07.07"]
[Round "7"]
[White "wonderfultime"]
[Black "Alopekos"]
[Result "1-0"]
[WhiteElo "2980"]
[BlackElo "2381"]
[TimeControl "180+1"]
[EndTime "11:17:57 PDT"]
[Termination "wonderfultime won by resignation"]

1. d4 {[%clk 0:03:00.9]} 1... Nf6 {[%clk 0:02:57.6]} 2. Nf3 {[%clk 0:03:01.3]}
2... e6 {[%clk 0:02:56.7]} 3. c4 {[%clk 0:03:01.8]} 3... d5 {[%clk 0:02:57]} 4.
Nc3 {[%clk 0:03:01.9]} 4... c6 {[%clk 0:02:56]} 5. Bg5 {[%clk 0:02:58.4]} 5...
dxc4 {[%clk 0:02:56.2]} 6. a4 {[%clk 0:02:57.4]} 6... Bb4 {[%clk 0:02:48.4]} 7.
e4 {[%clk 0:02:56]} 7... h6 {[%clk 0:02:36.4]} 8. Bxf6 {[%clk 0:02:50.9]} 8...
Qxf6 {[%clk 0:02:37.3]} 9. Bxc4 {[%clk 0:02:51.2]} 9... c5 {[%clk 0:02:37.3]}
10. O-O {[%clk 0:02:49.5]} 10... cxd4 {[%clk 0:02:17.1]} 11. Nb5 {[%clk
0:02:49.2]} 11... Qe7 {[%clk 0:01:57.9]} 12. Qxd4 {[%clk 0:02:45.5]} 12... O-O
{[%clk 0:01:57.4]} 13. Rfd1 {[%clk 0:02:46]} 13... Nc6 {[%clk 0:01:53.8]} 14.
Qe3 {[%clk 0:02:46.1]} 14... Bc5 {[%clk 0:01:27]} 15. Qf4 {[%clk 0:02:41.7]}
15... a6 {[%clk 0:01:27]} 16. Nd6 {[%clk 0:02:36.7]} 16... e5 {[%clk 0:01:10.9]}
17. Nxc8 {[%clk 0:02:33.8]} 17... Raxc8 {[%clk 0:01:09]} 18. Qg4 {[%clk
0:02:33.5]} 18... Bxf2+ {[%clk 0:00:57.7]} 19. Kh1 {[%clk 0:02:23.4]} 19... Nd4
{[%clk 0:00:57.1]} 20. Bd5 {[%clk 0:02:21.9]} 20... Nxf3 {[%clk 0:00:53.7]} 21.
Qxf3 {[%clk 0:02:22.8]} 21... Bd4 {[%clk 0:00:54.2]} 22. Rf1 {[%clk 0:02:19.4]}
22... Rc2 {[%clk 0:00:48.8]} 23. Rab1 {[%clk 0:02:12]} 23... Rxb2 {[%clk
0:00:26.9]} 24. Rxb2 {[%clk 0:02:11.2]} 24... Bxb2 {[%clk 0:00:27.8]} 25. Rb1
{[%clk 0:02:06.5]} 25... Rc8 {[%clk 0:00:27]} 26. h3 {[%clk 0:02:01.5]} 26...
Rc1+ {[%clk 0:00:26.6]} 27. Rxc1 {[%clk 0:01:57.8]} 27... Bxc1 {[%clk
0:00:27.5]} 28. Qc3 {[%clk 0:01:58]} 28... Ba3 {[%clk 0:00:10.8]} 29. Qc8+
{[%clk 0:01:54.2]} 29... Kh7 {[%clk 0:00:11.1]} 30. Bxb7 {[%clk 0:01:51.2]}
30... a5 {[%clk 0:00:06.7]} 31. Bd5 {[%clk 0:01:49.2]} 31... Bb4 {[%clk
0:00:05.6]} 32. Qf5+ {[%clk 0:01:46.2]} 32... Kg8 {[%clk 0:00:04.6]} 33. g3
{[%clk 0:01:44]} 33... Bd2 {[%clk 0:00:03.2]} 34. h4 {[%clk 0:01:43.6]} 34...
Bb4 {[%clk 0:00:02.5]} 35. Kg2 {[%clk 0:01:43.8]} 35... Bc3 {[%clk 0:00:02]} 36.
Qc8+ {[%clk 0:01:43.6]} 36... Kh7 {[%clk 0:00:02]} 37. Qxc3 {[%clk 0:01:44.5]}
37... Qf6 {[%clk 0:00:01.9]} 38. Qf3 {[%clk 0:01:44.6]} 1-0